bitfinex-derivatives/quotes_SOLF0:USTF0_20250425
["timestamp","ask_amount","ask_price","bid_price","bid_amount"]
[1745543358886,46.61338424,153.61,153.46,14.74868424]
[1745543359082,6.5099,153.55,153.46,14.74868424]
[1745543359382,33.72,153.56,153.46,1.8553]
[1745543359685,1.8763,153.6,153.49,12.89338424]
[1745543359879,33.72,153.64,153.52,12.89338424]
[1745543360689,6.5076,153.6,153.52,12.89338424]
[1745543361482,46.61338424,153.64,153.52,12.89338424]
[1745543361687,46.61338424,153.64,153.5,388.72]
[1745543361987,6.5094,153.56,153.5,388.72]
[1745543362182,33.72,153.57,153.5,355.0]
[1745543363288,40.2293,153.57,153.5,355.0]
[1745543363488,208.0,153.57,153.52,12.89338424]
[1745543363688,1.8763,153.66,153.55,12.89338424]
[1745543363689,208.0,153.65,153.55,12.89338424]
[1745543363880,1.8763,153.66,153.58,12.89338424]
[1745543364080,469.24,153.67,153.58,12.89338424]
[1745543364280,33.72,153.68,153.58,12.89338424]
[1745543364487,46.61338424,153.68,153.56,3.8521]
[1745543364687,12.89338424,153.65,153.52,12.89338424]
[1745543364891,12.89338424,153.62,153.49,14.79058424]
[1745543365089,6.5096,153.56,153.49,1.8972]
[1745543365588,34.9,153.56,153.49,1.8972]
[1745543365991,34.9,153.56,153.49,14.79058424]
[1745543366493,34.9,153.6,153.52,12.89338424]
[1745543367185,34.9,153.6,153.55,6.5094]
[1745543367382,34.9,153.6,153.52,367.89338424]
[1745543367582,34.9,153.6,153.52,355.0]
[1745543367787,6.5089,153.58,153.52,361.5107]
[1745543367990,34.9,153.6,153.52,355.0]
[1745543368288,6.5088,153.58,153.52,361.511]
[1745543368694,12.89338424,153.59,153.49,1.8972]
[1745543368993,12.89338424,153.59,153.49,8.4091]
[1745543369191,2.0393,153.59,153.49,1.8972]
[1745543369390,2.0393,153.59,153.52,6.5107]
[1745543369583,22.88892634,153.59,153.49,1.8972]
[1745543370093,22.88892634,153.59,153.49,8.4094]
[1745543370893,22.88892634,153.59,153.49,6.5122]
[1745543371191,6.5102,153.54,153.49,6.5122]
[1745543371491,22.88892634,153.59,153.46,356.9903]
[1745543371694,41.4077,153.6,153.5,20.84962634]
[1745543371987,34.9,153.6,153.5,375.84962634]
[1745543372695,34.9,153.6,153.54,6.5098]
[1745543372885,34.9,153.6,153.5,375.84962634]
[1745543373192,34.9,153.6,153.53,20.84962634]
[1745543373391,34.9,153.6,153.54,1.9541]
[1745543374092,34.9,153.6,153.56,6.5092]
[1745543374893,34.9,153.6,153.55,6.5096]
[1745543375193,34.9,153.6,153.54,1.9541]
[1745543375391,34.9,153.6,153.55,1.62764854]
[1745543375692,34.9,153.6,153.56,1.62764854]
[1745543375889,6.5084,153.59,153.53,355.0]
[1745543376892,6.5084,153.59,153.54,6.5101]
[1745543377492,34.9,153.6,153.53,355.0]
[1745543377896,469.0,153.64,153.53,375.84962634]
[1745543378094,6.5066,153.63,153.57,6.5085]
[1745543378392,469.0,153.64,153.58,1.62759963]
[1745543378593,469.0,153.64,153.53,375.84962634]
[1745543378792,6.5071,153.62,153.56,6.5089]
[1745543378993,6.5071,153.62,153.57,1.62761895]
[1745543379193,6.5071,153.62,153.56,6.5089]
[1745543379490,6.5071,153.62,153.57,1.62768092]
[1745543379691,6.5071,153.62,153.53,375.84962634]
[1745543379992,475.5063,153.64,153.54,1.62768461]
[1745543380191,469.0,153.64,153.55,1.62768461]
[1745543380392,469.0,153.64,153.58,6.5083]
[1745543380592,469.0,153.64,153.59,1.62768461]
[1745543380785,6.5069,153.62,153.54,1.965]
[1745543380986,6.5069,153.62,153.55,1.62760799]
[1745543381184,6.5069,153.62,153.57,6.5086]
[1745543381392,6.5069,153.62,153.58,1.62760799]
[1745543381593,6.5069,153.62,153.57,6.5086]
[1745543381794,6.5069,153.62,153.58,1.62761908]
[1745543381995,6.5065,153.63,153.59,1.62761908]
[1745543382196,6.5065,153.63,153.6,1.62761908]
[1745543382398,6.5065,153.63,153.54,3.8788]
[1745543382595,6.5065,153.63,153.55,1.62747662]
[1745543382890,469.0,153.64,153.56,1.62747662]
[1745543383097,34.88,153.65,153.57,1.62747662]
[1745543383397,34.88,153.65,153.58,3.60987662]
[1745543383597,34.88,153.65,153.59,1.62747662]
[1745543383895,34.88,153.65,153.6,1.62747662]
[1745543384197,34.88,153.65,153.62,6.5065]
[1745543384496,34.88,153.65,153.63,1.62747662]
[1745543384697,34.88,153.65,153.62,6.5065]
[1745543384997,34.88,153.65,153.63,8.1333726]
[1745543385193,34.88,153.65,153.58,1.9824]
[1745543385493,43.3604,153.69,153.59,22.47678627]
[1745543385694,1.9826,153.71,153.6,1.62715993]
[1745543385893,1.9826,153.71,153.61,1.62715993]
[1745543386103,34.88,153.8,153.65,20.84962634]
[1745543386304,34.88,153.8,153.68,20.84962634]
[1745543386593,34.88,153.8,153.71,20.84962634]
[1745543386798,34.88,153.8,153.72,22.47648488]
[1745543386992,34.88,153.84,153.73,3.61295854]
[1745543387193,34.88,153.84,153.74,3.65785854]
[1745543387395,34.88,153.84,153.75,1.62685854]
[1745543387598,34.88,153.84,153.76,1.62685854]
[1745543387799,468.74,153.87,153.78,20.84962634]
[1745543388102,468.74,153.87,153.79,1.62685854]
[1745543388299,34.88,153.88,153.8,1.62685854]
[1745543388500,34.88,153.88,153.81,1.62685854]
[1745543388797,222.87731403,153.92,153.82,1.62685854]
[1745543388999,222.87731403,153.92,153.81,20.84962634]
[1745543389000,222.87731403,153.92,153.83,5.64395854]
[1745543389199,227.19216581,153.91,153.84,1.62685854]
[1745543389400,220.69726581,153.91,153.85,1.62685854]
[1745543389597,111.09793707,153.89,153.81,1.9201]
[1745543389794,111.09793707,153.89,153.82,1.62510006]
[1745543390002,20.84962634,153.86,153.73,20.84962634]
[1745543390193,34.86,153.85,153.73,20.84962634]
[1745543390397,20.84962634,153.83,153.72,3.8723]
[1745543390897,20.84962634,153.8,153.65,20.84962634]
[1745543391106,34.86,153.79,153.65,20.84962634]
[1745543391301,6.5003,153.78,153.68,20.84962634]
[1745543391499,34.86,153.83,153.74,20.84962634]
[1745543391698,34.86,153.83,153.68,55.70962634]
[1745543391699,34.86,153.83,153.71,20.84962634]
[1745543392202,20.84962634,153.79,153.68,410.70962634]
[1745543392502,34.86,153.78,153.68,410.70962634]
[1745543393100,6.5005,153.77,153.69,1.9907]
[1745543393301,34.86,153.83,153.71,20.84962634]
[1745543393501,6.5,153.79,153.7,2.019]
[1745543393800,34.86,153.83,153.7,2.019]
[1745543394002,20.84962634,153.81,153.7,2.019]
[1745543394199,34.86,153.83,153.7,2.019]
[1745543394407,34.84,153.87,153.72,20.84962634]
[1745543394600,20.84962634,153.86,153.72,375.84962634]
[1745543394904,20.84962634,153.86,153.72,355.0]
[1745543395101,24.65772634,153.89,153.77,20.84962634]
[1745543395302,34.3,153.88,153.75,20.84962634]
[1745543395801,34.3,153.88,153.75,375.84962634]
[1745543396298,20.84962634,153.8,153.7,2.019]
[1745543396493,34.3,153.79,153.7,2.019]
[1745543397304,6.5008,153.77,153.7,2.019]
[1745543397503,34.3,153.79,153.72,20.84962634]
[1745543397706,34.3,153.79,153.7,4.0445]
[1745543400416,40.7996,153.79,153.7,4.0445]
[1745543400609,34.3,153.79,153.7,359.0445]
[1745543400805,468.3,153.89,153.77,20.84962634]
[1745543401003,34.3,153.85,153.8,20.84962634]
[1745543401205,34.3,153.85,153.78,1.9543]
[1745543401604,34.3,153.85,153.77,20.84962634]
[1745543401605,394.3,153.98,153.77,20.84962634]
[1745543401800,385.93354061,153.97,153.82,20.84962634]
[1745543402009,5.8615,153.97,153.85,20.84962634]
[1745543402205,5.8615,153.97,153.84,20.84962634]
[1745543403008,5.8615,153.97,153.87,20.84962634]
[1745543403503,5.8615,153.97,153.84,20.84962634]
[1745543403707,5.8615,153.97,153.84,375.84962634]
[1745543403902,5.8615,153.97,153.84,355.0]
[1745543404101,5.8615,153.97,153.86,20.84962634]
[1745543404305,5.8615,153.97,153.84,355.0]
[1745543404507,5.8615,153.97,153.89,6.495]
[1745543405111,20.84962634,153.95,153.81,20.84962634]
[1745543405409,20.84962634,153.95,153.8,355.0]
[1745543405610,34.28,153.94,153.8,355.0]
[1745543406109,34.28,153.94,153.86,20.84962634]
[1745543406305,34.28,153.94,153.81,34.28]
[1745543406506,488.92962634,153.93,153.8,355.0]
[1745543406807,468.08,153.93,153.8,355.0]
[1745543407008,20.84962634,153.9,153.78,3.7314]
[1745543407210,38.2049,153.89,153.78,3.7314]
[1745543407609,468.08,153.93,153.83,20.84962634]
[1745543407808,3.8454,153.99,153.86,20.84962634]
[1745543408010,35.54,153.98,153.87,1.8662]
[1745543408213,56.38962634,153.98,153.87,1.8662]
[1745543408609,56.38962634,153.98,153.87,3.7482]
[1745543408813,62.88162634,153.98,153.9,6.4949]
[1745543409208,62.88162634,153.98,153.91,6.4945]
[1745543409513,3.8454,153.99,153.87,3.7482]
[1745543409814,35.54,153.97,153.92,6.4937]
[1745543410214,35.54,153.97,153.87,3.7482]
[1745543410512,35.52,153.96,153.87,3.7482]
[1745543411007,35.52,153.96,153.9,6.4946]
[1745543411208,35.52,153.96,153.87,3.7482]
[1745543411411,35.52,153.96,153.87,358.7482]
[1745543412117,35.52,153.96,153.95,6.4928]
[1745543412318,488.92962634,154.02,153.89,20.84962634]
[1745543412618,37.3,154.01,153.89,375.84962634]
[1745543413013,468.08,154.02,153.95,6.4926]
[1745543413215,37.3,154.01,153.89,355.0]
[1745543413617,37.3,154.01,153.95,6.4926]
[1745543414321,37.3,154.01,153.96,6.4924]
[1745543414620,20.84962634,153.99,153.84,355.0]
[1745543414819,20.84962634,153.94,153.84,355.0]
[1745543415016,20.84962634,153.94,153.81,3.9227]
[1745543415017,40.5768,153.93,153.81,3.9227]
[1745543415323,20.84962634,153.91,153.81,3.9227]
[1745543415518,40.5768,153.93,153.81,3.9227]
[1745543415724,38.54,153.97,153.84,20.84962634]
[1745543415923,38.54,153.97,153.87,20.84962634]
[1745543416225,20.84962634,153.93,153.81,379.77232634]
[1745543416418,20.84962634,153.9,153.84,6.4975]
[1745543416621,38.54,153.89,153.81,358.9227]
[1745543418221,469.7874,153.92,153.81,358.9227]
[1745543418927,476.2819,153.92,153.81,358.9227]
[1745543419226,469.7874,153.92,153.81,358.9227]
[1745543419429,469.7874,153.92,153.85,6.4967]
[1745543419626,469.7874,153.92,153.81,358.9227]
[1745543419827,38.54,153.93,153.83,20.84962634]
[1745543420025,38.54,153.93,153.83,375.84962634]
[1745543420427,38.54,153.93,153.92,6.4941]
[1745543420628,38.54,153.97,153.86,20.84962634]
[1745543421127,1.8455,153.98,153.86,375.84962634]
[1745543421328,38.54,153.99,153.89,20.84962634]
[1745543421530,38.54,153.99,153.95,6.4924]
[1745543421829,38.54,153.99,153.9,3.9066]
[1745543422633,38.54,153.99,153.95,6.4924]
[1745543422831,38.54,153.99,153.9,3.9066]
[1745543422832,38.54,153.99,153.9,1.9751]
[1745543423131,59.38962634,153.99,153.87,2.0139]
[1745543423430,5.7337,153.98,153.85,22.79492634]
[1745543423623,12.2256,153.98,153.91,6.4942]
[1745543423827,5.7337,153.98,153.91,6.4942]
[1745543424129,6.4923,153.97,153.9,6.4949]
[1745543424328,6.4923,153.97,153.85,22.79492634]
[1745543424525,5.7337,153.98,153.85,22.79492634]
[1745543424720,5.7337,153.98,153.92,6.4937]
[1745543424925,38.52,153.97,153.92,6.4937]
[1745543426134,38.52,153.97,153.85,1.9453]
[1745543426430,38.52,153.97,153.87,20.84962634]
[1745543426635,38.52,153.97,153.92,6.494]
[1745543427024,38.52,153.97,153.85,1.9453]
[1745543427931,20.84962634,153.96,153.85,1.9453]
[1745543428125,20.84962634,153.96,153.84,1.858]
[1745543428435,20.84962634,153.93,153.83,355.0]
[1745543428633,38.52,153.92,153.83,355.0]
[1745543429333,6.4945,153.91,153.85,6.4968]
[1745543429730,6.4972,153.85,153.71,24.77942634]
[1745543429926,38.52,153.84,153.71,24.77942634]
[1745543430129,20.84962634,153.83,153.71,3.9298]
[1745543430424,20.84962634,153.77,153.69,384.57883072]
[1745543430626,38.52,153.76,153.68,6.5042]
[1745543430830,27.35142634,153.74,153.65,7.39470768]
[1745543431227,38.52,153.76,153.7,6.5034]
[1745543431425,38.52,153.76,153.65,7.39470768]
[1745543431832,20.84962634,153.74,153.65,7.39470768]
[1745543432835,20.84962634,153.74,153.67,6.5045]
[1745543433030,20.84962634,153.74,153.65,7.39470768]
[1745543433431,20.84962634,153.71,153.65,7.39470768]
[1745543433632,506.62,153.7,153.65,7.39470768]
[1745543433936,20.84962634,153.68,153.65,1.63460768]
[1745543434137,506.62,153.7,153.58,20.84962634]
[1745543435338,506.62,153.7,153.64,6.5058]
[1745543435636,506.62,153.7,153.58,20.84962634]
[1745543436536,527.46962634,153.7,153.65,6.5054]
[1745543436733,506.62,153.7,153.61,20.84962634]
[1745543436929,506.62,153.7,153.64,20.84962634]
[1745543437133,38.42710185,153.92,153.68,20.84962634]
[1745543437134,38.56,153.82,153.68,20.84962634]
[1745543437329,38.56,153.82,153.69,5.8534]
[1745543437530,38.56,153.82,153.7,20.84962634]
[1745543437735,38.56,153.82,153.73,20.84962634]
[1745543438129,38.56,153.82,153.71,20.84962634]
[1745543438337,20.84962634,153.79,153.69,360.8534]
[1745543438839,6.5005,153.77,153.7,6.503]
[1745543439036,38.56,153.76,153.7,6.503]
[1745543439238,38.56,153.76,153.69,3.9428]
[1745543439839,38.56,153.8,153.71,20.84962634]
[1745543440040,38.56,153.8,153.72,1.9504]
[1745543440336,38.56,153.8,153.74,20.84962634]
[1745543441237,38.56,153.8,153.78,6.4999]
[1745543441442,38.56,153.8,153.74,20.84962634]
[1745543441640,38.56,153.84,153.74,20.84962634]
[1745543442542,38.56,153.84,153.77,20.84962634]
[1745543442744,38.56,153.84,153.78,2.0092]
[1745543443944,38.56,153.84,153.79,6.4993]
[1745543444238,37.9,153.92,153.8,20.84962634]
[1745543444440,37.9,153.92,153.81,2.016]
[1745543444840,20.84962634,153.91,153.81,2.016]
[1745543445239,20.84962634,153.91,153.79,2.0229]
[1745543445444,6.4961,153.88,153.82,6.4982]
[1745543445645,37.88,153.87,153.82,6.4982]
[1745543446340,37.88,153.87,153.79,2.0229]
[1745543448541,58.72962634,153.91,153.79,2.0229]
[1745543448749,37.88,153.91,153.79,2.0229]
[1745543448943,37.88,153.91,153.82,20.84962634]
[1745543449344,2809.52,154.05,153.82,20.84962634]
[1745543449345,90.52095892,154.13,153.88,20.84962634]
[1745543449648,20.84962634,154.06,153.92,20.84962634]
[1745543449842,6.4901,154.02,153.96,6.4921]
[1745543450442,6.4901,154.02,153.89,64.57632634]
[1745543450648,20.84962634,154.03,153.89,43.7267]
[1745543451049,20.84962634,154.0,153.89,43.7267]
[1745543451250,37.88,153.99,153.92,6.4941]
[1745543451847,37.88,153.99,153.89,43.7267]
[1745543453251,37.88,153.99,153.89,5.8467]
[1745543453445,6.4918,153.98,153.89,5.8467]
[1745543453645,6.4918,153.98,153.88,355.0]
[1745543453646,20.84962634,153.97,153.82,355.0]
[1745543453842,20.84962634,153.94,153.83,3.8255]
[1745543454049,20.84962634,153.91,153.83,3.8255]
[1745543454253,20.84962634,153.91,153.8,37.88]
[1745543455652,27.34422634,153.91,153.85,6.4967]
[1745543456151,20.84962634,153.91,153.85,6.4967]
[1745543456351,6.4953,153.9,153.84,6.4974]
[1745543456652,6.4953,153.9,153.8,37.88]
[1745543456848,44.3738,153.93,153.8,37.88]
[1745543457054,44.3738,153.93,153.82,20.84962634]
[1745543457254,37.88,153.93,153.82,20.84962634]
[1745543457554,37.88,153.93,153.85,20.84962634]
[1745543457753,37.88,153.93,153.86,1.9753]
[1745543457954,37.88,153.93,153.89,6.495]
[1745543458755,37.88,153.93,153.88,6.4957]
[1745543459858,37.88,153.93,153.89,6.4952]
[1745543460154,37.86,154.0,153.91,20.84962634]
[1745543460358,37.86,154.0,153.96,6.4923]
[1745543460556,37.86,154.0,153.91,20.84962634]
[1745543461057,37.86,154.0,153.95,6.4926]
[1745543461462,37.86,154.0,153.91,20.84962634]
[1745543461856,37.86,154.0,153.88,20.84962634]
[1745543462753,6.4919,153.98,153.92,6.4939]
[1745543462952,37.86,154.0,153.92,6.4939]
[1745543463151,37.86,154.0,153.88,20.84962634]
[1745543463760,6.494,153.93,153.87,3.8228]
[1745543464057,37.86,153.94,153.87,3.8228]
[1745543464260,37.86,153.94,153.92,6.494]
[1745543464660,37.86,153.94,153.87,3.8228]
[1745543464958,37.86,153.94,153.9,6.4948]
[1745543465161,37.86,153.94,153.87,3.8228]
[1745543466156,37.86,153.99,153.88,37.86]
[1745543466353,37.86,153.99,153.88,392.86]
[1745543466556,37.86,153.99,153.94,6.493]
[1745543467160,37.86,153.99,153.89,20.84962634]
[1745543469260,37.86,153.99,153.95,6.4925]
[1745543469662,37.86,153.99,153.89,20.84962634]
[1745543470157,6.4923,153.97,153.91,6.4942]
[1745543470457,37.86,153.99,153.91,20.84962634]
[1745543470663,37.86,153.99,153.95,6.4928]
[1745543470863,37.86,153.99,153.89,20.84962634]
[1745543471155,36.66,154.06,153.95,20.84962634]
[1745543471354,0.23798,154.08,153.89,355.0]
[1745543471355,0.23798,154.08,153.96,26.62052634]
[1745543471758,0.23798,154.08,154.02,6.4898]
[1745543471957,0.23798,154.08,153.96,26.62052634]
[1745543471958,20.84962634,154.07,153.96,360.7709]
[1745543472761,0.23798,154.08,153.96,5.7709]
[1745543472963,20.84962634,154.06,153.96,5.7709]
[1745543473261,38.99799002,154.05,153.96,3.8726]
[1745543473461,37.84,154.05,153.96,3.8726]
[1745543473664,37.84,154.05,153.91,1.8983]
[1745543473665,20.84962634,154.03,153.91,1.8983]
[1745543473861,20.84962634,154.03,153.92,3.8726]
[1745543474261,37.84,154.05,153.93,20.84962634]
[1745543475160,37.84,154.05,153.99,6.491]
[1745543475356,37.84,154.05,153.93,20.84962634]
[1745543475663,44.329,154.05,153.93,20.84962634]
[1745543475961,37.84,154.05,153.93,20.84962634]
[1745543476157,44.3288,154.05,153.93,20.84962634]
[1745543476362,37.84,154.05,153.93,20.84962634]
[1745543476556,20.84962634,154.07,153.93,20.84962634]
[1745543476557,467.72,154.1,153.96,20.84962634]
[1745543476753,37.84,154.09,153.96,375.84962634]
[1745543477566,37.84,154.09,153.99,20.84962634]
[1745543478066,37.84,154.09,153.96,375.84962634]
[1745543478268,20.84962634,154.08,154.01,6.4903]
[1745543478459,20.84962634,154.08,153.95,37.84]
[1745543478662,37.84,154.09,153.97,20.84962634]
[1745543478957,37.84,154.09,154.04,6.489]
[1745543479169,37.84,154.09,153.98,1.9825]
[1745543480260,37.84,154.09,153.92,379.72222634]
[1745543480462,37.84,154.09,153.99,20.84962634]
[1745543480662,37.84,154.09,154.0,1.9471]
[1745543481369,37.84,154.09,154.02,20.84962634]
[1745543481766,37.84,154.09,154.01,1.9414]
[1745543481965,37.84,154.09,154.0,1.9471]
[1745543482166,467.72,154.1,154.0,1.9471]
[1745543482364,37.82,154.09,154.0,1.9471]
[1745543482766,6.4879,154.07,154.01,6.49]
[1745543482966,37.82,154.09,154.0,1.9471]
[1745543483467,44.3073,154.09,154.03,6.4893]
[1745543483665,44.3073,154.09,154.0,1.9471]
[1745543484064,37.82,154.09,154.0,1.9471]
[1745543484462,37.82,154.09,154.01,6.4902]
[1745543484669,37.82,154.09,154.0,1.9471]
[1745543484966,12.74644907,154.07,153.96,14.68784907]
[1745543485162,12.74644907,154.07,153.96,1.9414]
[1745543485362,6.4892,154.04,153.96,1.9414]
[1745543485665,37.82,154.03,153.96,1.9414]
[1745543486257,37.82,154.03,153.96,14.68784907]
[1745543486768,37.82,154.03,154.0,6.4906]
[1745543487167,37.82,154.03,153.98,6.4915]
[1745543487370,12.74644907,154.08,153.98,12.74644907]
[1745543487371,37.82,154.08,153.98,12.74644907]
[1745543487764,37.82,154.08,154.03,6.4892]
[1745543487965,37.82,154.08,153.98,12.74644907]
[1745543488666,37.82,154.08,154.01,12.74644907]
[1745543488868,37.82,154.08,154.03,6.4891]
[1745543489470,467.72,154.1,154.01,12.74644907]
[1745543490567,37.82,154.13,154.04,12.74644907]
[1745543491070,37.82,154.13,154.02,1.9009]
[1745543491467,44.3056,154.13,154.07,6.4875]
[1745543492269,6.4858,154.12,154.02,1.9009]
[1745543492469,37.82,154.13,154.02,1.9009]
[1745543492875,6.487,154.09,153.98,12.74644907]
[1745543493076,37.82,154.08,153.98,12.74644907]
[1745543493373,6.4881,154.07,154.01,6.4899]
[1745543494189,44.3074,154.08,154.02,6.4898]
[1745543494366,37.82,154.08,153.98,12.74644907]
[1745543494770,37.82,154.08,154.03,6.4893]
[1745543495074,37.82,154.08,153.98,12.74644907]
[1745543495970,37.82,154.08,154.04,6.4888]
[1745543496466,37.82,154.08,153.98,12.74644907]
[1745543496467,44.306,154.12,153.98,12.74644907]
[1745543496876,6.4861,154.11,154.05,6.4882]
[1745543497179,37.82,154.12,154.01,12.74644907]
[1745543497472,44.306,154.12,154.06,6.4879]
[1745543498275,37.82,154.12,154.01,12.74644907]
[1745543498478,37.82,154.12,154.04,12.74644907]
[1745543498673,37.82,154.12,154.01,12.74644907]
[1745543498870,44.306,154.12,154.01,12.74644907]
[1745543499172,37.82,154.12,154.01,12.74644907]
[1745543499371,44.3058,154.12,154.01,12.74644907]
[1745543500372,44.3058,154.12,154.06,6.4878]
[1745543500577,44.3058,154.12,154.01,12.74644907]
[1745543501875,37.82,154.12,154.01,12.74644907]
[1745543502278,37.82,154.12,154.05,6.4883]
[1745543502479,6.4866,154.1,154.05,6.4883]
[1745543502777,37.82,154.12,154.01,12.74644907]
[1745543503077,50.56644907,154.12,154.01,12.74644907]
[1745543503475,12.74644907,154.09,153.98,12.74644907]
[1745543503681,12.74644907,154.06,153.96,1.9414]
[1745543503877,37.98,154.05,153.93,12.74644907]
[1745543504378,6.4901,154.02,153.91,1.8918]
[1745543504776,6.4901,154.02,153.96,6.4923]
[1745543505080,6.4903,154.01,153.96,6.4923]
[1745543505384,50.72644907,154.0,153.9,1.8938]
[1745543505679,37.98,153.99,153.9,1.8938]
[1745543506978,37.98,153.99,153.91,6.4942]
[1745543507578,12.74644907,153.97,153.86,3.9662]
[1745543508484,6.493,153.95,153.89,6.4953]
[1745543508687,38.0,153.94,153.89,6.4953]
[1745543508980,12.74644907,153.92,153.85,6.497]
[1745543509380,12.74644907,153.92,153.8,355.0]
[1745543509680,38.0,153.94,153.84,12.74644907]
[1745543509878,50.74644907,153.94,153.81,18.64364907]
[1745543510275,6.4942,153.92,153.85,6.4967]
[1745543510583,50.74644907,153.94,153.81,18.64364907]
[1745543511388,38.0,153.94,153.81,18.64364907]
[1745543512586,38.0,153.94,153.89,6.4952]
[1745543512788,38.0,153.94,153.84,12.74644907]
[1745543513184,38.0,153.94,153.89,6.4953]
[1745543513389,38.0,153.94,153.84,12.74644907]
[1745543513789,38.0,153.94,153.9,6.4949]
[1745543513985,38.0,153.94,153.87,12.74644907]
[1745543514191,505.5,153.98,153.87,12.74644907]
[1745543514392,505.5,153.98,153.88,2.0422]
[1745543514688,505.5,153.98,153.89,3.8923]
[1745543514890,505.5,153.98,153.9,12.74644907]
[1745543515291,38.0,154.03,153.9,367.74644907]
[1745543515583,50.74644907,154.02,153.9,367.74644907]
[1745543516290,50.74644907,154.02,153.94,6.4929]
[1745543516789,6.4908,154.0,153.94,6.4929]
[1745543517190,6.4915,153.99,153.89,3.8923]
[1745543517392,19.23794907,153.99,153.89,3.8923]
[1745543517594,19.23794907,153.99,153.92,6.4938]
[1745543517790,12.74644907,153.99,153.89,3.8923]
[1745543518191,12.74644907,153.99,153.94,6.4932]
[1745543518497,12.74644907,153.99,153.89,3.8923]
[1745543518793,12.74644907,153.99,153.9,6.4946]
[1745543518994,12.74644907,153.96,153.84,12.74644907]
[1745543519189,36.78,153.95,153.84,12.74644907]
[1745543519594,43.2729,153.95,153.84,12.74644907]
[1745543519888,36.78,153.95,153.88,6.4955]
[1745543520094,6.4934,153.94,153.88,6.4955]
[1745543520283,36.78,153.95,153.84,12.74644907]
[1745543521490,36.78,153.95,153.87,6.4961]
[1745543521790,36.78,154.0,153.9,12.74644907]
[1745543521994,36.78,154.02,153.93,12.74644907]
[1745543522196,36.78,154.02,153.98,6.4913]
[1745543522496,36.78,154.02,153.93,12.74644907]
[1745543522692,36.78,154.02,153.91,42.6221]
[1745543523097,36.78,154.02,153.98,6.4912]
[1745543523402,36.78,154.02,153.93,12.74644907]
[1745543523796,467.7,154.05,153.96,12.74644907]
[1745543523997,480.44644907,154.05,153.91,5.8421]
[1745543524295,486.93514907,154.05,153.97,6.4917]
[1745543524492,480.44644907,154.05,153.91,18.58854907]
[1745543524692,467.7,154.05,153.99,6.4911]
[1745543524899,467.7,154.05,153.94,12.74644907]
[1745543525600,480.44644907,154.05,153.92,391.78]
[1745543525801,480.44644907,154.05,153.92,355.0]
[1745543526101,6.4902,154.02,153.95,6.4924]
[1745543526300,36.78,154.01,153.95,6.4924]
[1745543526899,36.78,154.01,153.96,6.4923]
[1745543527502,36.78,154.01,153.95,6.4927]
[1745543527701,43.2703,154.01,153.95,6.4927]
[1745543527899,43.2703,154.01,153.92,355.0]
[1745543528400,6.4907,154.0,153.94,6.4932]
[1745543528905,36.78,154.01,153.92,355.0]
[1745543529405,6.4908,154.0,153.94,6.493]
[1745543530102,6.4908,154.0,153.95,6.4928]
[1745543530704,36.78,154.01,153.96,6.4924]
[1745543530705,43.2704,154.01,153.96,6.4924]
[1745543531003,36.78,154.01,153.96,6.4924]
[1745543531306,36.78,154.01,153.92,355.0]
[1745543531702,43.2704,154.01,153.92,355.0]
[1745543531906,36.78,154.01,153.92,355.0]
[1745543533809,467.7,154.05,153.96,6.4924]
[1745543534110,36.78,154.04,153.92,355.0]